bitfinex/quotes_SOLUSD_20250708
["timestamp","ask_amount","ask_price","bid_price","bid_amount"]
[1751995435508,1.6513,152.07,152.04,5.84255916]
[1751995436090,8.22727425,152.07,152.0,54.10964886]
[1751995436394,14.06983341,152.07,152.03,5.84255916]
[1751995436595,8.22727425,152.07,152.03,5.84255916]
[1751995436922,14.06983341,152.07,152.03,5.84255916]
[1751995437126,14.06983341,152.07,152.01,6.57851457]
[1751995437311,14.06983341,152.07,152.03,5.84255916]
[1751995437515,1.6513,152.07,152.03,12.42016172]
[1751995437825,1.6513,152.07,152.0,54.10964886]
[1751995437826,8.22726058,152.07,152.04,5.84255916]
[1751995438125,14.06981974,152.07,152.03,5.84255916]
[1751995438911,1.6513,152.07,152.02,6.57795965]
[1751995439150,14.06994715,152.07,152.02,6.57795965]
[1751995439426,14.06994715,152.07,152.03,5.84255916]
[1751995439811,8.22738799,152.07,152.03,5.84255916]
[1751995440108,14.06994715,152.07,152.03,5.84255916]
[1751995440309,14.06994715,152.07,152.0,18.64964886]
[1751995440622,1.6513,152.07,152.0,25.22842532]
[1751995440793,1.6513,152.07,152.03,5.84255916]
[1751995441414,8.22732617,152.07,152.03,5.84255916]
[1751995441598,14.06988533,152.07,152.03,5.84255916]
[1751995443437,1.6513,152.07,152.04,5.84255916]
[1751995443637,147.5,152.08,152.05,5.84255916]
[1751995443930,5.84255916,152.07,152.03,5.84255916]
[1751995444731,5.84255916,152.07,152.01,6.57851457]
[1751995445041,5.84255916,152.07,152.0,35.09691889]
[1751995445042,5.84255916,152.07,152.03,5.84255916]
[1751995445418,12.418611,152.07,152.03,5.84255916]
[1751995445714,6.57605184,152.07,152.03,12.42018714]
[1751995445918,5.84255916,152.07,152.03,12.42018714]
[1751995446645,154.07564247,152.08,152.04,5.84255916]
[1751995446926,147.5,152.08,152.04,12.41969612]
[1751995447311,153.34255916,152.08,152.04,12.41969612]
[1751995448224,147.5,152.08,152.04,12.41969612]
[1751995448429,153.34255916,152.08,152.04,6.57713696]
[1751995448635,154.07554691,152.08,152.04,5.84255916]
[1751995448938,159.91810607,152.08,152.04,5.84255916]
[1751995449917,5.84255916,152.07,152.03,12.41983077]
[1751995450235,154.07554691,152.08,152.03,12.41983077]
[1751995450438,5.84255916,152.07,152.03,12.41983077]
[1751995451029,154.07554691,152.08,152.03,12.41983077]
[1751995451238,153.34255916,152.08,152.04,5.84255916]
[1751995451403,153.34255916,152.08,152.01,23.02480099]
[1751995451404,147.5,152.08,152.05,5.84255916]
[1751995451609,147.5,152.08,152.01,23.02480099]
[1751995451806,153.34255916,152.08,152.04,5.84255916]
[1751995452116,5.84255916,152.06,152.0,6.57876657]
[1751995452318,5.84255916,152.04,152.0,5.84255916]
[1751995452516,37.0285,152.04,151.98,5.84255916]
[1751995452713,5.84255916,152.02,151.98,5.84255916]
[1751995453131,1.6285,152.04,151.99,0.5]
[1751995453438,1.6285,152.04,152.02,5.84255916]
[1751995453822,1.6285,152.04,152.0,5.84255916]
[1751995454513,1.6285,152.04,152.01,5.84255916]
[1751995455320,1.6285,152.04,152.02,12.42064099]
[1751995455621,153.34255916,152.06,152.02,12.42064099]
[1751995455622,147.5,152.06,152.02,12.42064099]
[1751995455802,0.06,152.07,152.05,5.84255916]
[1751995456006,0.06,152.07,152.04,5.84255916]
[1751995456911,0.06,152.07,152.02,6.57808183]
[1751995457114,0.06,152.07,152.03,5.84255916]
[1751995457332,5.90255916,152.07,152.03,5.84255916]
[1751995458638,0.06,152.07,152.04,6.34255916]
[1751995458938,5.90255916,152.07,152.04,0.5]
[1751995459142,0.06,152.07,152.04,6.34255916]
[1751995459545,0.06,152.07,152.05,5.84255916]
[1751995461247,0.06,152.07,152.05,12.41901469]
[1751995461436,0.06,152.07,152.06,5.84255916]
[1751995462656,0.06,152.07,152.05,12.41901469]
[1751995463151,0.06,152.07,152.06,5.84255916]
[1751995463533,0.06,152.07,152.06,6.34255916]
[1751995463737,0.06,152.07,152.06,12.9189106]
[1751995464449,0.06,152.07,152.06,7.07635144]
[1751995464650,0.06,152.07,152.06,12.9189106]
[1751995464964,0.06,152.07,152.06,31.56855946]
[1751995465565,0.06,152.07,152.06,57.56855946]
[1751995467466,1e-08,152.07,152.06,39.04231862]
[1751995467671,0.1,152.14,152.1,44.64964886]
[1751995467958,0.1,152.14,152.13,24.49220802]
[1751995468129,0.1,152.14,152.13,18.64964886]
[1751995468331,0.1,152.14,152.08,5.520721]
[1751995468549,5.84255916,152.13,152.09,18.64964886]
[1751995468753,5.84255916,152.11,152.06,12.4189106]
[1751995469059,35.34,152.12,152.06,6.57635144]
[1751995469226,35.34,152.12,152.05,5.84255916]
[1751995469227,5.84255916,152.09,152.05,12.41921052]
[1751995469432,41.91395849,152.12,152.06,5.84255916]
[1751995469657,5.84255916,152.1,152.06,5.84255916]
[1751995470031,5.84255916,152.11,152.07,5.84255916]
[1751995470743,5.84255916,152.1,152.05,12.41921052]
[1751995470945,5.84255916,152.09,152.05,12.41921052]
[1751995471362,5.84255916,152.1,152.06,5.84255916]
[1751995471656,5.84255916,152.1,152.06,12.41869215]
[1751995472254,41.91377664,152.12,152.06,12.41869215]
[1751995472255,35.34,152.12,152.08,5.84255916]
[1751995472559,1.633,152.14,152.11,5.84255916]
[1751995472741,0.1,152.14,152.12,5.84255916]
[1751995472951,0.1,152.14,152.13,24.49220802]
[1751995473567,0.1,152.14,152.13,31.06553346]
[1751995476051,0.1,152.14,152.13,25.2229743]
[1751995476363,0.1,152.14,152.13,31.06553346]
[1751995479155,0.1,152.14,152.13,25.2229743]
[1751995479475,0.1,152.14,152.13,31.06553346]
[1751995481254,0.1,152.14,152.1,6.57462195]
[1751995481471,0.1,152.14,152.11,5.84255916]
[1751995481972,5.94255916,152.14,152.09,25.2245942]
[1751995482183,5.94255916,152.14,152.09,6.57494534]
[1751995482184,5.84255916,152.13,152.09,6.57494534]
[1751995482389,5.84255916,152.13,152.09,12.4175045]
[1751995482673,5.94255916,152.14,152.09,12.4175045]
[1751995483182,0.1,152.14,152.11,5.84255916]
[1751995483358,0.1,152.14,152.12,5.84255916]
[1751995484077,0.1,152.14,152.11,5.84255916]
[1751995484757,6.67302071,152.14,152.09,12.4175045]
[1751995484957,6.67302071,152.14,152.09,6.57494534]
[1751995484958,5.84255916,152.13,152.09,6.57494534]
[1751995485453,5.84255916,152.13,152.08,6.5753697]
[1751995485654,5.84255916,152.12,152.08,12.41792886]
[1751995485883,5.84255916,152.13,152.08,12.41792886]
[1751995486076,154.17299876,152.14,152.08,12.41792886]
[1751995486378,5.84255916,152.11,152.06,32.60617308]
[1751995486562,154.17299876,152.14,152.06,6.60617308]
[1751995486757,5.84255916,152.1,152.06,6.60617308]
[1751995487267,5.84255916,152.1,152.06,12.44873224]
[1751995488193,5.84255916,152.12,152.08,5.84255916]
[1751995488495,5.84255916,152.11,152.07,5.84255916]
[1751995488664,5.84255916,152.12,152.08,5.84255916]
[1751995488872,153.44255916,152.14,152.07,26.0]
[1751995489181,153.44255916,152.14,152.1,5.84255916]
[1751995489371,153.44255916,152.14,152.1,12.41678348]
[1751995489985,153.44255916,152.14,152.1,6.57422432]
[1751995490801,153.44255916,152.14,152.1,12.41678348]
[1751995491098,5.84255916,152.13,152.1,6.57422432]
[1751995492790,154.1729126,152.14,152.08,12.41804574]
[1751995492971,5.84255916,152.12,152.08,6.57548658]
[1751995493172,5.84255916,152.12,152.08,12.41804574]
[1751995493485,147.6,152.14,152.09,5.84255916]
[1751995493693,153.44255916,152.14,152.1,5.84255916]
[1751995493873,5.84255916,152.13,152.09,6.44255916]
[1751995494984,5.84255916,152.13,152.1,6.57462195]
[1751995495475,153.44255916,152.14,152.1,6.57462195]
[1751995495682,153.44255916,152.14,152.1,12.41718111]
[1751995496296,153.44255916,152.14,152.1,6.57462195]
[1751995496478,5.84255916,152.13,152.1,6.57462195]
[1751995496891,147.6,152.14,152.1,6.57462195]
[1751995497091,5.84255916,152.13,152.1,6.57462195]
[1751995498100,147.6,152.14,152.1,6.57462195]
[1751995498277,5.84255916,152.13,152.1,6.57462195]
[1751995499183,5.84255916,152.13,152.09,12.41743315]
[1751995499801,5.84255916,152.12,152.09,6.57487399]
[1751995499999,5.84255916,152.13,152.09,6.57487399]
[1751995500181,5.84255916,152.13,152.09,12.41743315]
[1751995500583,182.86,152.14,152.09,6.57487399]
[1751995500801,5.84255916,152.13,152.09,6.57487399]
[1751995501115,5.84255916,152.13,152.09,12.41743315]
[1751995501485,182.86,152.14,152.09,12.41743315]
[1751995501787,5.84255916,152.13,152.09,12.41743315]
[1751995501990,182.86,152.14,152.09,12.41743315]
[1751995502301,5.84255916,152.13,152.09,12.41743315]
[1751995502604,5.84255916,152.12,152.09,6.57487399]
[1751995502903,5.84255916,152.13,152.09,6.57487399]
[1751995503104,189.43329303,152.14,152.11,5.84255916]
[1751995503105,147.6,152.14,152.11,5.84255916]
[1751995503280,147.6,152.14,152.12,5.84255916]
[1751995503480,147.6,152.14,152.11,5.84255916]
[1751995503884,35.24,152.13,152.1,0.6]
[1751995504088,5.84255916,152.11,152.1,0.6]
[1751995504287,5.84255916,152.12,152.1,0.6]
[1751995504694,5.84255916,152.12,152.08,6.57533092]
[1751995504900,5.84255916,152.11,152.08,6.57533092]
[1751995505082,35.24,152.13,152.08,6.57533092]
[1751995505410,5.84255916,152.12,152.08,6.57533092]
[1751995505802,5.84255916,152.1,152.06,12.44853903]
[1751995506382,5.84255916,152.11,152.07,5.84255916]
[1751995506737,147.5,152.12,152.08,6.57548658]
[1751995507000,147.5,152.12,152.08,12.41804574]
[1751995507782,5.84255916,152.1,152.06,5.87255916]
[1751995508580,5.84255916,152.1,152.06,0.03]
[1751995508804,12.41739806,152.1,152.06,0.03]
[1751995509103,5.84255916,152.07,152.06,0.03]
[1751995509311,41.06255916,152.07,152.06,0.03]
[1751995510706,47.63847814,152.07,152.06,0.03]
[1751995511603,49.14317814,152.07,152.06,0.03]
[1751995511804,55.55297814,152.07,152.06,1e-08]
[1751995512503,26.0,152.04,151.97,0.03]
[1751995512726,5.84255916,151.98,151.97,0.03]
[1751995513333,12.42237229,151.98,151.97,0.03]
[1751995514450,41.06255916,151.99,151.97,0.03]
[1751995514740,35.22,152.0,151.97,5.87255916]
[1751995514908,35.22,152.0,151.97,0.03]
[1751995515307,5.84255916,151.99,151.97,0.03]
[1751995515831,41.06255916,152.0,151.97,0.03]
[1751995516219,47.64157156,152.0,151.97,0.03]
[1751995516742,5.84255916,151.99,151.97,0.03]
[1751995516917,41.06255916,151.98,151.97,0.03]
[1751995517342,47.64237229,151.98,151.97,0.03]
[1751995517836,32.57764914,152.03,151.97,5.87255916]
[1751995518012,5.84255916,152.01,151.97,5.87255916]
[1751995518213,35.22,152.0,151.97,5.87255916]
[1751995518412,5.84255916,152.02,151.97,0.03]
[1751995518612,5.84255916,152.02,151.98,5.84255916]
[1751995518809,6.57737614,152.04,152.0,5.84255916]
[1751995519015,12.4199353,152.04,152.0,5.84255916]
[1751995519229,35.22,152.03,152.0,5.84255916]
[1751995519421,41.06255916,152.03,151.99,5.84255916]
[1751995520132,47.64036442,152.03,151.99,5.84255916]
[1751995520515,35.22,152.02,152.0,5.84255916]
[1751995520717,35.22,152.02,152.0,0.6]
[1751995521021,35.22,152.02,151.99,5.84255916]
[1751995522216,35.22,152.02,152.0,5.84255916]
[1751995522941,35.22,152.02,151.98,6.57943976]
[1751995522942,35.22,152.04,152.01,5.84255916]
[1751995523238,147.5,152.05,152.02,5.84255916]
[1751995523442,182.72,152.05,152.02,5.84255916]
[1751995523611,182.72,152.05,152.01,5.84255916]
[1751995523818,147.5,152.05,152.01,5.84255916]
[1751995524026,182.7,152.05,152.01,5.84255916]
[1751995524243,189.27696551,152.05,152.0,6.57877129]
[1751995524435,5.84255916,152.04,152.0,5.84255916]
[1751995525645,5.84255916,152.01,151.97,0.03]
[1751995525832,5.84255916,152.0,151.97,0.03]
[1751995526142,5.84255916,151.98,151.97,0.03]
[1751995526356,41.04255916,151.99,151.97,0.03]
[1751995527232,35.2,151.99,151.97,5.87255916]
[1751995527435,35.2,152.04,151.98,5.84255916]
[1751995527744,149.1153,152.07,151.98,5.84255916]
[1751995527745,6.57635144,152.06,151.98,18.64964886]
[1751995527944,5.84255916,152.05,152.01,0.6]
[1751995528249,5.84255916,152.03,151.99,5.84255916]
[1751995528420,5.84255916,152.03,151.97,26.03]
[1751995528421,5.84255916,152.03,151.98,5.84255916]
[1751995528621,5.84255916,152.03,151.97,26.03]
[1751995528918,5.84255916,152.03,151.99,5.84255916]
[1751995529538,5.84255916,152.03,151.99,12.42178918]
[1751995530419,26.0,152.06,152.02,5.84255916]
[1751995530720,26.0,152.06,152.03,5.84255916]
[1751995530933,188.54255916,152.07,152.03,5.84255916]
[1751995531248,182.7,152.07,152.03,5.84255916]
[1751995531631,147.5,152.07,152.03,5.84255916]
[1751995531837,182.7,152.07,152.03,5.84255916]
[1751995532222,188.54255916,152.07,152.03,5.84255916]
[1751995532522,182.7,152.07,152.03,12.42015662]
[1751995532925,147.5,152.07,152.06,8.72940433]
[1751995533225,147.5,152.07,152.05,8.72940433]
[1751995534048,147.5,152.07,152.05,15.30598149]
[1751995534622,147.5,152.07,152.04,6.57709053]
[1751995534832,147.5,152.07,152.04,8.72940433]
[1751995535029,147.5,152.07,151.97,0.03]
[1751995535030,8.72940433,152.05,151.97,0.03]
[1751995535252,182.68,152.04,151.97,8.75940433]
[1751995535551,182.68,152.04,152.03,8.72940433]
[1751995535552,147.5,152.04,152.03,8.72940433]
[1751995535726,147.5,152.04,151.99,18.64964886]
[1751995535928,67.75576058,152.08,152.03,8.72940433]
[1751995535929,147.5,152.07,152.03,8.72940433]
[1751995536135,147.5,152.07,152.04,8.72940433]
[1751995536546,0.4055902,152.06,152.05,8.72940433]
[1751995537343,0.4055902,152.06,152.01,18.64964886]
[1751995537547,0.4055902,152.06,152.04,8.72940433]
[1751995537751,0.4055902,152.06,152.02,6.57808183]
[1751995538054,0.4055902,152.06,152.03,8.72940433]
[1751995538253,0.4055902,152.06,152.0,8.72940433]
[1751995538254,8.72940433,152.05,152.0,8.72940433]
[1751995538551,0.4055902,152.06,152.03,8.72940433]
[1751995538761,0.4055902,152.06,152.02,8.72940433]
[1751995538926,6.98202006,152.06,152.0,18.64964886]
[1751995539123,8.72940433,152.04,152.0,8.72940433]
[1751995539529,8.72940433,152.02,151.97,6.61008572]
[1751995539723,147.5,152.05,152.0,8.72940433]
[1751995539946,35.18,152.04,152.01,8.72940433]
[1751995540958,147.5,152.05,152.0,18.64964886]
[1751995541123,147.5,152.05,152.02,8.72940433]
[1751995541321,147.5,152.05,152.01,8.72940433]
[1751995542060,147.5,152.05,152.02,6.57808183]
[1751995542426,147.5,152.05,152.02,15.30748616]
[1751995543536,147.5,152.05,152.03,8.72940433]
[1751995543733,147.5,152.05,152.02,15.30748616]
[1751995544737,147.5,152.05,152.02,6.57808183]
[1751995545348,147.5,152.05,152.02,15.30748616]
[1751995545546,147.5,152.05,152.02,6.57808183]
[1751995545744,147.5,152.05,152.02,8.72940433]
[1751995545925,147.5,152.05,152.0,25.25820676]
[1751995546130,8.72940433,152.04,152.0,15.33796223]
[1751995546349,182.66,152.05,152.02,8.72940433]
[1751995547233,182.66,152.05,152.01,8.72940433]
[1751995547945,182.66,152.05,152.02,8.72940433]
[1751995548357,182.66,152.05,152.0,0.03]
[1751995548742,189.23682219,152.05,152.01,8.72940433]
[1751995548942,182.66,152.05,152.01,8.72940433]
[1751995549461,189.23683564,152.05,152.01,8.72940433]
[1751995549634,8.72940433,152.04,152.0,0.03]
[1751995549832,35.16,152.03,152.0,0.03]
[1751995550033,8.72940433,152.01,152.0,0.03]
[1751995550249,43.88940433,152.01,152.0,0.03]
[1751995550453,50.4679189,152.01,152.0,0.03]
[1751995553068,8.72940433,152.01,152.0,0.03]
[1751995553271,43.88940433,152.01,152.0,0.03]
[1751995554357,50.4679189,152.01,152.0,0.03]
[1751995554562,43.88940433,152.01,152.0,0.03]
[1751995554955,40.98490643,152.01,152.0,0.03]
[1751995557569,35.16,152.01,152.0,0.03]
[1751995557772,40.98490643,152.01,152.0,0.03]
[1751995559052,47.563421,152.01,152.0,0.03]
[1751995559857,41.73851457,152.01,152.0,0.03]
[1751995560056,47.563421,152.01,152.0,0.03]
[1751995560976,40.98490643,152.01,152.0,0.03]
[1751995561489,35.16,152.01,152.0,0.03]
[1751995563178,5.82490643,152.02,152.0,0.03]
[1751995563361,35.16,152.02,152.0,5.85490643]
[1751995563760,1.6175,152.04,152.0,5.85490643]
[1751995563968,35.16,152.03,152.0,5.85490643]
[1751995564367,35.16,152.03,152.0,0.03]
[1751995564984,10.35105898,152.04,152.0,0.03]
[1751995565156,10.35105898,152.04,152.0,8.76355898]
[1751995565353,0.4055902,152.06,152.02,8.73355898]
[1751995565597,0.4055902,152.06,152.03,8.73355898]
[1751995565598,35.16,152.05,152.03,8.73355898]
[1751995565764,35.16,152.05,152.02,8.73355898]
[1751995566167,0.4055902,152.06,152.02,8.73355898]
[1751995566379,35.14,152.05,152.02,8.73355898]
[1751995566596,35.14,152.05,152.03,8.73355898]
[1751995566892,0.4655902,152.06,152.02,8.73355898]
[1751995566893,15.7755168,152.06,152.02,8.73355898]
[1751995567189,15.7755168,152.06,152.03,8.73355898]
[1751995567190,35.14,152.05,152.03,8.73355898]
[1751995567387,35.14,152.05,152.02,8.73355898]
[1751995567757,35.14,152.05,152.01,6.57851457]
[1751995567758,35.14,152.05,152.03,8.73355898]
[1751995567984,35.14,152.05,152.01,6.57851457]
[1751995568182,35.14,152.05,152.02,8.73355898]
[1751995569590,8.73355898,152.03,152.0,0.03]
[1751995569787,8.73355898,152.02,152.0,0.03]
[1751995569994,35.14,152.01,152.0,0.03]
[1751995570470,43.87355898,152.01,152.0,0.03]
[1751995571289,50.45207355,152.01,152.0,0.03]
[1751995576709,52.00347355,152.01,152.0,0.03]
[1751995578301,60.73703253,152.01,152.0,0.03]
[1751995578679,43.87355898,152.01,152.0,0.03]
[1751995579698,43.85355898,152.01,152.0,0.03]
[1751995580316,42.4432539,152.04,152.0,0.03]
[1751995580317,26.0,152.04,152.0,0.03]
[1751995580491,43.85355898,152.03,152.0,0.03]
[1751995580676,8.73355898,152.02,152.0,0.03]
[1751995580871,35.12,152.01,152.0,0.03]
[1751995581180,43.85355898,152.01,152.0,0.03]
[1751995581999,35.12,152.01,152.0,0.03]
[1751995583083,15.31121674,152.03,152.0,0.03]
[1751995583402,43.85355898,152.02,152.0,0.03]
[1751995584885,50.43166687,152.02,152.0,0.03]
[1751995585101,47.52214892,152.02,152.0,0.03]
[1751995585696,5.82404103,152.01,152.0,0.03]
[1751995586581,12.4025556,152.01,152.0,0.03]
[1751995586983,38.4025556,152.01,152.0,0.03]
[1751995588796,41.31991226,152.01,152.0,0.03]
[1751995589396,76.41991226,152.01,152.0,0.03]
[1751995591308,85.16130995,152.01,152.0,0.03]
[1751995592009,76.41991226,152.01,152.0,0.03]
[1751995593587,85.16130995,152.01,152.0,0.03]
[1751995593994,26.0,151.98,151.97,0.03]
[1751995594195,61.1,151.98,151.97,0.03]
[1751995594414,69.84139769,151.98,151.97,0.03]
[1751995595203,76.42121082,151.98,151.97,0.03]
[1751995596787,67.67981313,151.98,151.97,0.03]
[1751995596992,76.42121082,151.98,151.97,0.03]
[1751995597494,61.1,151.98,151.97,0.03]
[1751995597889,76.42121082,151.98,151.97,0.03]
[1751995598087,18.64964886,152.04,151.97,0.03]
[1751995598286,34.74139769,152.0,151.97,0.03]
[1751995598517,35.1,151.99,151.97,0.03]
[1751995599012,35.1,151.98,151.97,0.03]
[1751995601722,50.42121082,151.98,151.97,0.03]
[1751995602193,41.67981313,151.98,151.97,0.03]
[1751995602396,50.42121082,151.98,151.97,0.03]
[1751995603019,15.32121082,151.98,151.97,0.03]
[1751995603219,50.40121082,151.98,151.97,0.03]
[1751995603720,41.65981313,151.98,151.97,0.03]
[1751995604013,50.40121082,151.98,151.97,0.03]
[1751995604388,41.65981313,151.98,151.97,0.03]
[1751995604588,35.08,151.98,151.97,0.03]
[1751995605012,41.65981313,151.98,151.97,0.03]
[1751995605609,50.40121082,151.98,151.97,0.03]
[1751995607526,41.65981313,151.98,151.97,0.03]
[1751995608528,35.08,151.98,151.97,0.03]
[1751995608727,50.40121082,151.98,151.97,0.03]
[1751995609036,47.48677898,151.98,151.97,0.03]
[1751995610404,35.06,151.98,151.97,0.03]
[1751995610922,40.88696585,151.98,151.97,0.03]
[1751995612514,47.46677898,151.98,151.97,0.03]
[1751995614033,66.11642784,151.98,151.97,1e-08]
[1751995614341,173.5,151.95,151.91,0.2]
[1751995614629,6.58197854,151.93,151.91,0.2]
[1751995614832,40.88696585,151.92,151.91,0.2]
[1751995616728,47.46937764,151.92,151.91,0.2]
[1751995616919,41.64241179,151.92,151.91,0.2]
[1751995617236,47.46937764,151.92,151.91,0.2]
[1751995617437,67.64241179,151.92,151.91,0.2]
[1751995617733,32.58241179,151.92,151.91,0.2]
[1751995617948,73.46937764,151.92,151.91,0.2]
[1751995618419,61.06,151.92,151.91,0.2]
[1751995618622,73.46937764,151.92,151.91,0.2]
[1751995621319,66.88696585,151.92,151.91,0.2]
[1751995621931,24.04498757,151.98,151.91,0.2]
[1751995622132,31.82696585,151.94,151.91,0.2]
[1751995622434,35.04,151.93,151.88,5.82696585]
[1751995622640,5.82696585,151.92,151.88,5.82696585]
[1751995622946,41.6228451,151.91,151.88,5.82696585]
[1751995623244,47.44981095,151.91,151.87,5.82696585]
[1751995624142,5.82696585,151.9,151.86,5.82696585]
[1751995624350,188.36696585,151.89,151.85,6.02696585]
[1751995624555,40.86696585,151.88,151.85,0.2]
[1751995624754,12.41165904,151.87,151.85,0.2]
[1751995625047,35.04,151.86,151.85,0.2]
[1751995626612,40.86696585,151.86,151.85,0.2]
[1751995627118,47.45197836,151.86,151.85,0.2]
[1751995629127,73.45197836,151.86,151.85,0.2]
[1751995631052,66.84696585,151.86,151.85,0.2]
[1751995631228,73.43197836,151.86,151.85,0.2]
[1751995631632,61.02,151.86,151.85,0.2]
[1751995631940,66.84696585,151.86,151.85,0.2]
[1751995632343,5.82696585,151.88,151.85,0.2]
[1751995632553,35.02,151.87,151.85,0.2]
[1751995632722,6.58327847,151.9,151.86,5.82696585]
[1751995632923,41.6037469,151.89,151.87,5.82696585]
[1751995633235,35.02,151.88,151.86,5.82696585]
[1751995634521,35.02,151.88,151.85,0.2]
[1751995634836,5.82696585,151.87,151.85,0.2]
[1751995635039,41.60501251,151.86,151.85,0.2]
[1751995635233,189.10501251,151.86,151.85,0.2]
[1751995636842,182.52,151.86,151.85,0.2]
[1751995638048,189.10501251,151.86,151.85,0.2]
[1751995638435,182.52,151.86,151.85,0.2]
[1751995639330,189.10501251,151.86,151.85,0.2]
[1751995639939,182.52,151.86,151.85,0.2]
[1751995640139,182.52,151.86,151.85,6.02696585]
[1751995640343,147.5,151.86,151.85,6.02696585]
[1751995640519,147.5,151.86,151.85,0.2]
[1751995640723,147.5,151.86,151.85,6.02696585]
[1751995641548,154.08501251,151.86,151.85,0.2]
[1751995641719,147.5,151.86,151.85,0.2]
[1751995642328,147.5,151.86,151.85,6.02696585]
[1751995643243,147.5,151.86,151.85,0.2]
[1751995643428,147.5,151.86,151.85,6.02696585]
[1751995646342,182.48,151.86,151.85,6.02696585]
[1751995649459,147.5,151.86,151.85,12.61241201]
[1751995649755,147.5,151.9,151.87,6.58457891]
[1751995650075,34.98,151.94,151.89,5.82696585]
[1751995650240,34.98,151.94,151.93,5.82696585]
[1751995650433,147.5,151.96,151.93,5.82696585]
[1751995650754,147.5,151.96,151.95,5.82696585]
[1751995651074,182.46,151.96,151.95,5.82696585]
[1751995652539,147.5,151.96,151.95,5.82696585]
[1751995652741,5.88696585,152.0,151.95,12.40807805]
[1751995652742,0.06,152.0,151.95,12.40807805]
[1751995652947,0.06,152.0,151.99,5.82696585]
[1751995653146,35.02,152.0,151.99,5.82696585]
[1751995653338,41.59894736,152.0,151.99,5.82696585]
[1751995653540,0.06,152.0,151.99,5.82696585]
[1751995653972,0.06,152.0,151.96,6.58066939]
[1751995654141,34.96,151.99,151.94,25.2311942]
[1751995654343,34.96,151.99,151.98,5.82696585]
[1751995657058,0.06,152.0,151.98,5.82696585]
[1751995657361,35.0,152.0,151.99,5.82696585]
[1751995658849,0.06,152.0,151.99,5.82696585]
[1751995661070,34.98,152.0,151.99,5.82696585]
[1751995661256,34.98,152.0,151.97,5.82696585]
[1751995661567,147.5,151.99,151.97,5.82696585]
[1751995661756,34.92,151.98,151.97,5.82696585]
[1751995662265,34.92,151.98,151.96,5.82696585]
[1751995662767,34.92,151.98,151.97,5.82696585]
[1751995663069,34.92,151.98,151.93,6.58189205]
[1751995663255,34.92,151.98,151.95,5.82696585]
[1751995663968,182.4,151.99,151.97,5.82696585]
[1751995664167,147.5,151.99,151.98,5.82696585]
[1751995665369,147.5,151.99,151.96,5.82696585]
[1751995665545,34.9,151.98,151.96,5.82696585]
[1751995665751,34.9,151.98,151.95,5.82696585]
[1751995665951,34.9,151.98,151.96,5.82696585]
[1751995669265,34.9,151.98,151.95,5.82696585]
[1751995671176,34.9,151.98,151.96,5.82696585]
[1751995671677,34.9,151.98,151.97,5.82696585]
[1751995671883,147.5,151.99,151.97,5.82696585]
[1751995672054,182.38,151.99,151.98,5.82696585]
[1751995672255,147.5,151.99,151.98,5.82696585]
[1751995672469,182.38,151.99,151.98,5.82696585]
[1751995673073,147.5,151.99,151.98,5.82696585]
[1751995674574,147.5,151.99,151.94,6.58154534]
[1751995674750,147.5,151.99,151.98,5.82696585]
[1751995678476,147.5,151.99,151.98,12.40677898]
[1751995678675,0.06,152.0,151.98,5.82696585]
[1751995678858,0.06,152.0,151.96,25.22993492]
[1751995679054,0.06,151.99,151.96,25.22993492]
[1751995680184,0.06,151.99,151.98,5.82696585]
[1751995681582,0.06,151.99,151.98,12.40677898]
[1751995681759,0.06,151.99,151.98,5.82696585]
[1751995686078,0.06,151.99,151.96,6.58067912]
[1751995686270,0.06,151.99,151.98,5.82696585]
[1751995688961,0.06,151.99,151.96,6.58067912]
[1751995689161,0.06,151.99,151.98,5.82696585]
[1751995689386,0.06,151.99,151.96,6.58067912]
[1751995689595,0.06,151.99,151.98,5.82696585]